bitfinex/quotes_SOLUSD_20260120
["timestamp","ask_amount","ask_price","bid_price","bid_amount"]
[1768899902600,4.3284511,128.83,128.79,3.71229296]
[1768899903513,4.3284511,128.83,128.77,7.76550121]
[1768899903712,4.3284511,128.83,128.79,4.18684052]
[1768899903916,15.80271572,128.84,128.79,4.18684052]
[1768899904586,15.80271572,128.84,128.8,4.18684052]
[1768899904787,38.12603416,128.85,128.81,4.18684052]
[1768899905396,3.71229296,128.82,128.79,4.18684052]
[1768899905599,8.04074406,128.82,128.79,4.18684052]
[1768899906615,15.80351561,128.82,128.79,4.18684052]
[1768899908515,4.3284511,128.81,128.78,4.18684052]
[1768899908724,4.3284511,128.78,128.71,4.18684052]
[1768899908894,8.04074406,128.77,128.72,4.18684052]
[1768899909215,4.3284511,128.81,128.74,7.89913348]
[1768899909412,8.04074406,128.8,128.76,4.18684052]
[1768899910305,15.80479537,128.8,128.76,4.18684052]
[1768899910507,3.71229296,128.79,128.76,4.18684052]
[1768899911020,12.09250241,128.8,128.74,4.18684052]
[1768899911021,8.04074406,128.78,128.74,4.18684052]
[1768899911399,4.3284511,128.78,128.74,4.18684052]
[1768899911790,4.3284511,128.78,128.75,4.18684052]
[1768899911994,8.04074406,128.79,128.75,4.18684052]
[1768899912392,15.80544158,128.79,128.75,4.18684052]
[1768899914005,8.04074406,128.8,128.76,4.18684052]
[1768899914213,4.3284511,128.8,128.77,4.18684052]
[1768899916013,8.04074406,128.81,128.77,4.18684052]
[1768899916210,7.76306656,128.82,128.78,7.89913348]
[1768899916412,7.76306656,128.82,128.79,4.18684052]
[1768899917123,12.09151766,128.82,128.79,4.18684052]
[1768899917802,15.80381062,128.82,128.79,4.18684052]
[1768899919205,15.80381062,128.82,128.78,4.18684052]
[1768899919730,4.3284511,128.8,128.76,7.89913348]
[1768899919931,8.04074406,128.78,128.74,4.18684052]
[1768899920125,4.3284511,128.77,128.72,4.18684052]
[1768899920318,8.04074406,128.77,128.72,7.89913348]
[1768899920520,8.04074406,128.77,128.73,4.18684052]
[1768899920717,4.3284511,128.77,128.73,7.89913348]
[1768899921309,4.3284511,128.77,128.74,4.18684052]
[1768899921724,15.80625275,128.78,128.74,4.18684052]
[1768899922423,4.3284511,128.77,128.74,4.18684052]
[1768899923132,13.10772404,128.81,128.75,7.81971832]
[1768899923321,4.452878,128.8,128.75,4.10742536]
[1768899923637,4.452878,128.8,128.76,7.81971832]
[1768899923818,4.452878,128.8,128.77,7.81971832]
[1768899924019,4.452878,128.82,128.77,7.81971832]
[1768899924432,4.452878,128.81,128.77,7.81971832]
[1768899924726,4.452878,128.83,128.79,3.71229296]
[1768899927022,4.452878,128.83,128.79,7.81971832]
[1768899927226,34.53820204,128.85,128.81,3.71229296]
[1768899927415,4.452878,128.85,128.82,3.71229296]
[1768899927617,4.452878,128.86,128.83,3.71229296]
[1768899928214,0.1,128.87,128.85,3.71229296]
[1768899929739,4.452878,128.86,128.82,7.76270391]
[1768899929928,4.452878,128.86,128.83,3.71229296]
[1768899932829,4.452878,128.86,128.84,3.71229296]
[1768899933036,4.452878,128.86,128.83,7.81178778]
[1768899935457,4.40834922,128.84,128.79,4.10742536]
[1768899935644,8.11271164,128.84,128.8,4.10742536]
[1768899936120,3.70436242,128.83,128.8,4.10742536]
[1768899936327,4.50834922,128.87,128.82,4.10742536]
[1768899936547,4.50834922,128.87,128.81,3.70436242]
[1768899936548,8.21271164,128.87,128.83,4.10742536]
[1768899938045,8.21271164,128.87,128.81,3.70436242]
[1768899938046,8.15724042,128.86,128.81,3.70436242]
[1768899938250,102.1,128.9,128.82,4.10742536]
[1768899938448,3.70436242,128.86,128.82,4.10742536]
[1768899939337,3.70436242,128.86,128.83,4.10742536]
[1768899939540,3.70436242,128.87,128.83,4.10742536]
[1768899940132,7.7585538,128.89,128.84,4.10742536]
[1768899940332,11.8249049,128.89,128.84,4.10742536]
[1768899940637,3.70436242,128.88,128.84,4.10742536]
[1768899941249,7.77071352,128.87,128.82,7.81178778]
[1768899941431,7.77071352,128.87,128.8,4.10742536]
[1768899941432,3.70436242,128.83,128.8,4.10742536]
[1768899941631,4.0663511,128.84,128.8,4.10742536]
[1768899941832,3.70436242,128.83,128.8,4.10742536]
[1768899942854,4.0663511,128.84,128.77,4.10742536]
[1768899943030,3.70436242,128.81,128.77,4.10742536]
[1768899943234,3.70436242,128.81,128.77,11.87290684]
[1768899943757,3.70436242,128.81,128.78,4.226125]
[1768899943939,11.8286367,128.83,128.78,4.226125]
[1768899944250,3.70436242,128.81,128.77,11.99160648]
[1768899944757,7.77071352,128.8,128.75,4.226125]
[1768899945740,7.77071352,128.8,128.75,11.99274394]
[1768899946739,7.77071352,128.8,128.76,4.226125]
[1768899950360,3.70436242,128.79,128.76,4.226125]
[1768899951357,7.77071352,128.79,128.75,7.76661894]
[1768899951543,3.70436242,128.79,128.76,4.226125]
[1768899952450,7.77071352,128.8,128.76,4.226125]
[1768899954463,7.77071352,128.8,128.76,11.99250721]
[1768899954636,4.0663511,128.8,128.76,11.99250721]
[1768899954837,7.77071352,128.8,128.76,11.99250721]
[1768899959261,7.77071352,128.8,128.76,4.226125]
[1768899959957,7.77071352,128.8,128.76,11.99246472]
[1768899961758,3.70436242,128.8,128.77,4.26734322]
[1768899962061,3.70436242,128.82,128.78,4.26734322]
[1768899963735,11.82867458,128.83,128.78,4.26734322]
[1768899963938,3.70436242,128.79,128.75,4.26734322]
[1768899964161,3.70436242,128.77,128.73,29.01521609]
[1768899964962,3.70436242,128.77,128.74,4.26734322]
[1768899966464,4.0663511,128.78,128.74,4.26734322]
[1768899966668,3.70436242,128.77,128.74,4.26734322]
[1768899970368,3.70436242,128.77,128.74,12.03491846]
[1768899970556,4.0663511,128.78,128.74,4.26734322]
[1768899970764,7.77071352,128.78,128.74,4.26734322]
[1768899970967,3.70436242,128.78,128.75,4.26734322]
[1768899972570,3.70436242,128.8,128.76,4.26734322]
[1768899972959,113.56735749,128.82,128.77,4.26734322]
[1768899973674,106.1663511,128.82,128.78,4.26734322]
[1768899973969,7.77071352,128.82,128.78,4.26734322]
[1768899974166,15.53350989,128.82,128.78,4.26734322]
[1768899974353,7.77071352,128.82,128.78,4.26734322]
[1768899975443,15.53319596,128.83,128.78,4.26734322]
[1768899975673,3.70436242,128.82,128.78,4.26734322]
[1768899976668,7.77071352,128.8,128.77,4.26734322]
[1768899976854,3.70436242,128.79,128.76,21.24734322]
[1768899977248,4.0663511,128.8,128.76,4.26734322]
[1768899977551,7.77071352,128.8,128.76,4.26734322]
[1768899980273,4.0663511,128.8,128.76,4.26734322]
[1768899981158,4.0663511,128.81,128.76,4.26734322]
[1768899981359,7.77071352,128.81,128.77,4.26734322]
[1768899981566,4.0663511,128.83,128.78,4.26734322]
[1768899981770,7.77071352,128.83,128.79,4.26734322]
[1768899982172,7.77071352,128.83,128.8,4.26734322]
[1768899982424,4.0663511,128.85,128.8,4.26734322]
[1768899982555,3.70436242,128.84,128.8,4.26734322]
[1768899983578,15.5317198,128.85,128.8,7.97170564]
[1768899984675,11.82735738,128.85,128.8,7.97170564]
[1768899984881,15.5317198,128.85,128.8,7.97170564]
[1768899985380,3.70436242,128.84,128.8,7.97170564]
[1768899985587,3.70436242,128.84,128.75,4.45574649]
[1768899985588,4.0663511,128.8,128.75,4.45574649]
[1768899985758,4.0663511,128.8,128.71,38.84632326]
[1768899985759,3.70436242,128.78,128.74,4.45574649]
[1768899985960,3.64436241,128.78,128.74,4.45574649]
[1768899986965,3.64436241,128.78,128.74,12.22318779]
[1768899987158,7.76396443,128.81,128.75,4.45574649]
[1768899987365,3.70436242,128.79,128.75,4.45574649]
[1768899987560,7.76396443,128.81,128.75,4.45574649]
[1768899987766,7.70923229,128.79,128.75,4.45574649]
[1768899987986,3.70436242,128.78,128.75,4.45574649]
[1768899988380,7.70923229,128.79,128.75,4.45574649]
[1768899988687,3.70436242,128.79,128.75,4.45574649]
[1768899989474,3.70436242,128.78,128.75,4.45574649]
[1768899993091,3.70977552,128.78,128.75,4.45574649]
[1768899995272,3.70977552,128.79,128.75,12.222689]
[1768899995585,3.64977551,128.79,128.75,4.45574649]
[1768899995766,3.70977552,128.78,128.75,4.45574649]
[1768899995966,3.64977551,128.78,128.75,4.45574649]
[1768899996667,7.71464539,128.79,128.75,4.45574649]
[1768899997673,3.70977552,128.78,128.75,4.45574649]
[1768900002593,4.00486987,128.79,128.75,4.45574649]
[1768900002796,7.71464539,128.79,128.75,4.45574649]
[1768900006993,3.70977552,128.79,128.75,4.45574649]
[1768900013996,3.70977552,128.79,128.76,4.07979932]
[1768900014198,4.00486987,128.82,128.77,4.07979932]
[1768900014405,102.1,128.85,128.79,4.07979932]
[1768900014406,3.70977552,128.84,128.79,4.07979932]
[1768900014696,3.70977552,128.84,128.81,4.07979932]
[1768900015001,7.71464539,128.85,128.81,4.07979932]
[1768900017005,7.71464539,128.85,128.82,4.07979932]
[1768900019201,7.71464539,128.85,128.81,7.76312412]
[1768900019202,4.00486987,128.82,128.73,4.07979932]
[1768900019400,7.71464539,128.8,128.76,4.07979932]
[1768900019926,3.70977552,128.8,128.76,4.07979932]
[1768900020401,4.00486987,128.81,128.76,4.07979932]
[1768900020402,4.00486987,128.81,128.77,4.07979932]
[1768900020584,7.71464539,128.79,128.76,4.07979932]
[1768900022205,3.70977552,128.79,128.76,4.07979932]
[1768900022382,4.00486987,128.83,128.77,4.07979932]
[1768900022587,7.71464539,128.82,128.77,4.07979932]
[1768900024695,7.71464539,128.81,128.77,4.07979932]
[1768900024898,11.76774733,128.82,128.77,4.07979932]
[1768900025306,11.76774733,128.82,128.69,0.2]
[1768900025307,7.71464539,128.78,128.73,4.07979932]
[1768900025508,3.70977552,128.76,128.73,4.07979932]
[1768900026108,7.71464539,128.75,128.71,4.07979932]
[1768900028515,7.71464539,128.74,128.7,21.25979932]
[1768900028708,7.71464539,128.74,128.71,4.07979932]
[1768900029210,4.00486987,128.74,128.7,0.2]
[1768900029416,7.71464539,128.74,128.7,4.27979932]
[1768900029796,7.65967111,128.74,128.7,4.27979932]
[1768900031597,15.42747994,128.74,128.7,4.27979932]
[1768900031928,3.70977552,128.72,128.7,4.27979932]
[1768900032406,7.66022086,128.73,128.7,4.27979932]
[1768900033529,15.42842886,128.73,128.7,4.27979932]
[1768900036945,15.36842879,128.73,128.7,4.27979932]
[1768900037325,7.60022079,128.73,128.7,4.27979932]
[1768900037536,119.08,128.78,128.72,4.07979932]
[1768900037537,3.70977552,128.77,128.72,4.07979932]
[1768900037848,3.70977552,128.77,128.73,4.07979932]
[1768900038357,7.76397515,128.8,128.74,4.07979932]
[1768900038655,3.70977552,128.78,128.74,4.07979932]
[1768900038816,3.70977552,128.79,128.74,4.07979932]
[1768900039421,11.47463754,128.79,128.74,4.07979932]
[1768900039841,11.47463754,128.79,128.74,7.78957484]
[1768900040124,11.47463754,128.79,128.75,4.07979932]
[1768900041928,15.36568281,128.79,128.75,4.07979932]
[1768900043040,15.36505904,128.8,128.76,4.3792705]
[1768900043236,7.76361962,128.81,128.78,4.3792705]
[1768900043556,15.363843,128.82,128.78,4.3792705]
[1768900043748,15.363843,128.82,128.78,8.08904602]
[1768900043953,15.363843,128.82,128.78,4.3792705]
[1768900044762,11.65406748,128.82,128.78,4.3792705]
[1768900045761,11.65406748,128.82,128.76,4.3792705]
[1768900045762,7.60082079,128.8,128.76,4.3792705]
[1768900047543,3.89104527,128.8,128.76,4.3792705]
[1768900047846,15.36512096,128.8,128.76,4.3792705]
[1768900048454,11.65534544,128.8,128.76,4.3792705]
[1768900049160,11.65534544,128.8,128.76,8.08904602]
[1768900049361,11.65471311,128.81,128.77,8.08904602]
[1768900050938,15.36448863,128.81,128.77,4.3792705]
[1768900051145,7.60082079,128.8,128.77,4.3792705]
[1768900051341,7.60082079,128.8,128.76,4.3792705]
[1768900051342,3.89104527,128.79,128.76,4.3792705]
[1768900052870,11.65564126,128.79,128.76,4.3792705]
[1768900054059,3.70898979,128.81,128.77,4.3792705]
[1768900054254,3.89104527,128.81,128.77,8.08826029]
[1768900054571,11.65448743,128.81,128.78,4.3792705]
[1768900055256,15.36347722,128.81,128.78,4.3792705]
[1768900055464,7.60003506,128.8,128.76,4.3792705]
[1768900056667,7.60003506,128.78,128.72,4.3792705]
[1768900056868,7.60003506,128.78,128.74,4.3792705]
[1768900057873,15.36527769,128.78,128.74,4.3792705]
[1768900058454,11.6562879,128.78,128.74,4.3792705]
[1768900059361,15.36527769,128.78,128.74,4.3792705]
[1768900062476,3.89104527,128.77,128.74,4.3792705]
[1768900062665,7.60003506,128.76,128.72,4.3792705]
[1768900064373,7.76610866,128.77,128.73,8.1915714]
[1768900064571,7.76610866,128.77,128.73,4.48258161]
[1768900064775,3.89104527,128.76,128.73,4.48258161]
[1768900065362,7.60003506,128.76,128.72,4.48258161]
[1768900065680,3.89104527,128.76,128.72,4.48258161]
[1768900066178,3.89104527,128.76,128.72,8.1915714]
[1768900066387,3.89104527,128.76,128.73,4.48258161]
[1768900071178,11.65747157,128.76,128.73,4.48258161]
[1768900072904,15.36646136,128.76,128.73,4.48258161]
[1768900073694,3.89104527,128.74,128.7,4.56684585]
[1768900073883,7.60003506,128.74,128.7,4.56684585]
[1768900076372,3.89104527,128.74,128.7,4.56684585]
[1768900076691,7.60003506,128.74,128.7,4.56684585]
[1768900077202,15.36773387,128.74,128.7,4.56684585]
[1768900077404,3.89104527,128.74,128.7,8.27583564]
[1768900078204,3.89104527,128.74,128.7,4.56684585]
[1768900078397,7.60003506,128.74,128.7,4.56684585]
[1768900078598,3.70898979,128.72,128.7,0.2]
[1768900078900,7.60003506,128.73,128.7,0.2]
[1768900081279,3.70898979,128.74,128.71,4.36684585]
[1768900081803,3.89104527,128.76,128.72,4.36684585]
[1768900081999,3.70898979,128.76,128.72,4.36684585]
[1768900082600,117.46602957,128.77,128.73,4.36684585]
[1768900082785,15.36602957,128.77,128.73,4.36684585]
[1768900084290,3.70898979,128.76,128.73,4.36684585]
[1768900085091,11.47544634,128.76,128.73,4.36684585]
[1768900085296,11.47544634,128.76,128.7,7.96982887]
[1768900085297,15.36649161,128.76,128.72,4.36684585]
[1768900086010,7.60003506,128.75,128.72,4.36684585]
[1768900086306,11.4760015,128.75,128.7,21.56684585]
[1768900086504,3.89104527,128.74,128.71,4.36684585]
[1768900086704,15.36704677,128.75,128.71,4.36684585]
[1768900087413,7.60003506,128.74,128.7,4.56684585]
[1768900088020,3.70898979,128.73,128.7,4.56684585]
[1768900089611,3.89104527,128.76,128.7,4.56684585]
[1768900089821,3.70898979,128.75,128.71,4.36684585]
[1768900090003,7.60003506,128.76,128.72,4.36684585]
[1768900090517,11.65822102,128.75,128.72,4.36684585]
[1768900090708,3.89104527,128.78,128.73,4.36684585]
[1768900090914,3.89104527,128.77,128.73,4.36684585]
[1768900091208,7.60003506,128.77,128.73,4.36684585]
[1768900091415,3.89104527,128.77,128.73,4.36684585]
[1768900091719,7.60003506,128.77,128.73,4.36684585]
[1768900092820,11.65695271,128.77,128.73,4.36684585]
[1768900093013,15.3659425,128.77,128.73,4.36684585]
[1768900093520,11.65695271,128.77,128.73,4.36684585]
[1768900094226,7.76544,128.78,128.74,4.36684585]
[1768900094428,11.47442979,128.78,128.74,4.36684585]
[1768900094799,15.36547506,128.78,128.74,4.36684585]
[1768900096797,11.65648527,128.78,128.74,4.36684585]
[1768900098229,7.60003506,128.77,128.74,4.36684585]
[1768900098612,11.65650639,128.78,128.74,4.36684585]
[1768900098805,11.65650639,128.78,128.74,8.07583564]
[1768900099703,11.65650639,128.78,128.75,4.36684585]
[1768900102321,7.76546112,128.78,128.75,4.36684585]
[1768900102636,121.51102021,128.8,128.7,17.2]
[1768900102637,7.60003506,128.81,128.76,3.70898979]
[1768900102917,5.11487079,128.8,128.77,8.07583564]
[1768900103099,23.29906656,128.82,128.78,4.36684585]
[1768900103100,11.65401762,128.82,128.78,4.36684585]
[1768900103297,5.11576667,128.81,128.78,4.36684585]
[1768900103507,11.65401762,128.82,128.78,4.36684585]
[1768900103724,11.65401762,128.82,128.78,8.07583564]
[1768900103923,7.76297235,128.82,128.79,4.48635716]
[1768900104120,7.76232786,128.83,128.79,4.45635719]
[1768900104312,3.92074524,128.85,128.8,3.70898979]
[1768900104313,7.62973503,128.85,128.8,3.70898979]
[1768900104500,4.15241898,128.87,128.82,3.70898979]
[1768900104501,0.1,128.87,128.82,3.70898979]
[1768900104697,0.1,128.87,128.83,3.70898979]
[1768900104698,7.85987677,128.87,128.83,3.70898979]
[1768900105298,7.85987677,128.87,128.82,3.70898979]
[1768900106009,7.85987677,128.87,128.82,4.48635716]
[1768900106343,7.85987677,128.87,128.83,4.48635716]
[1768900106498,11.56886656,128.87,128.83,4.48635716]
[1768900106699,7.62973503,128.84,128.8,4.48635716]
[1768900107121,3.70898979,128.83,128.8,4.48635716]
[1768900109219,11.4712159,128.83,128.8,4.48635716]
[1768900110342,7.76222611,128.83,128.8,4.48635716]
[1768900110632,11.4712159,128.83,128.8,4.48635716]
[1768900110830,7.76222611,128.83,128.8,4.48635716]
[1768900111012,11.4712159,128.83,128.8,4.48635716]
[1768900112339,7.76096235,128.85,128.8,4.48635716]
[1768900112550,11.56906081,128.87,128.83,4.48635716]
[1768900112728,0.1,128.87,128.85,4.48635716]
[1768900113430,0.1,128.87,128.86,4.48635716]
[1768900115125,0.1,128.87,128.83,4.48635716]
[1768900115452,0.1,128.87,128.84,4.48635716]
[1768900116350,7.75865241,128.89,128.85,4.48635716]
[1768900116743,7.75865241,128.89,128.85,8.18959709]
[1768900116936,15.48107944,128.9,128.86,4.48635716]
[1768900117661,15.48107944,128.9,128.87,4.48635716]
[1768900117662,7.75809427,128.9,128.87,4.48635716]
[1768900118227,15.48107944,128.9,128.85,4.48635716]
[1768900118453,15.48107944,128.9,128.85,8.18959709]
[1768900118633,15.48107944,128.9,128.86,4.48635716]
[1768900119835,7.72298517,128.89,128.85,4.48635716]
[1768900120355,3.70323993,128.88,128.85,4.48635716]
[1768900120659,7.72298517,128.87,128.83,4.48635716]
[1768900121252,3.70323993,128.87,128.83,4.48635716]
[1768900121845,3.70323993,128.84,128.81,4.48635716]
[1768900122042,7.72298517,128.84,128.8,2.10607207]
[1768900122534,3.70323993,128.83,128.8,2.10607207]
[1768900122730,3.70323993,128.82,128.8,2.10607207]
[1768900125543,4.01974524,128.85,128.8,6.34972949]
[1768900125748,3.70323993,128.84,128.81,4.24365742]
[1768900125958,7.76125973,128.85,128.81,4.24365742]
[1768900126148,11.46449966,128.85,128.81,4.24365742]
[1768900128350,7.76125973,128.85,128.81,4.24365742]
[1768900128545,11.46449966,128.85,128.81,4.24365742]
[1768900132171,15.4842449,128.85,128.81,4.24365742]
[1768900132558,3.70323993,128.84,128.81,4.24365742]
[1768900133358,3.70323993,128.83,128.8,6.3205427]
[1768900133662,3.70323993,128.82,128.8,2.10607207]
[1768900134058,3.70323993,128.81,128.77,4.21447063]
[1768900134267,3.70323993,128.79,128.76,4.21447063]
[1768900135352,4.01974524,128.8,128.76,4.21447063]
[1768900135553,3.70323993,128.79,128.76,4.21447063]
[1768900136078,3.70323993,128.8,128.76,4.21447063]
[1768900137071,3.70323993,128.79,128.76,4.21447063]
[1768900138677,4.01974524,128.8,128.76,4.21447063]
[1768900138853,3.70323993,128.79,128.76,4.21447063]
[1768900139877,7.72298517,128.8,128.76,4.21447063]
[1768900140292,11.46604129,128.82,128.78,4.21447063]
[1768900140588,7.76280136,128.82,128.79,4.21447063]
[1768900141585,11.78208283,128.83,128.8,4.21447063]
[1768900141986,11.78208283,128.83,128.79,3.70323993]
[1768900142288,11.78208283,128.83,128.78,7.91771056]
[1768900142469,11.78208283,128.83,128.79,4.21447063]
[1768900146085,7.72298517,128.84,128.8,4.21447063]
[1768900146589,15.4843486,128.85,128.81,4.21447063]
[1768900147388,11.78110867,128.85,128.81,4.21447063]
[1768900147564,15.4843486,128.85,128.81,4.21447063]
[1768900149081,11.78110867,128.85,128.81,4.21447063]
[1768900149398,7.72298517,128.85,128.82,4.21447063]
[1768900149600,4.01974524,128.84,128.8,4.21447063]
[1768900150179,4.01974524,128.84,128.8,7.91771056]
[1768900151000,4.01974524,128.84,128.81,4.21447063]
[1768900155803,4.01974524,128.82,128.78,4.21447063]
[1768900155990,4.01974524,128.81,128.78,4.21447063]
[1768900157702,4.01974524,128.81,128.77,3.70323993]
[1768900157703,15.48642995,128.81,128.77,4.21447063]
[1768900158098,4.01974524,128.8,128.75,4.21447063]
[1768900158401,4.01974524,128.78,128.75,4.21447063]
[1768900159504,3.70323993,128.79,128.75,4.21447063]
[1768900159707,7.72298517,128.8,128.76,4.21447063]
[1768900159904,15.48696292,128.8,128.76,4.21447063]
[1768900160613,4.01974524,128.81,128.76,7.91771056]
[1768900160786,11.78338759,128.81,128.77,4.21447063]
[1768900162510,4.01974524,128.82,128.78,4.21447063]
[1768900162718,3.70323993,128.83,128.79,4.21447063]
[1768900162918,7.72298517,128.83,128.79,4.21447063]
[1768900163614,4.01974524,128.82,128.78,4.43138243]
[1768900163820,4.01974524,128.79,128.75,4.43138243]
[1768900164144,4.01974524,128.79,128.75,8.13462236]
[1768900164315,4.01974524,128.79,128.76,4.43138243]
[1768900165625,7.72298517,128.8,128.76,4.43138243]
[1768900169829,4.01974524,128.79,128.75,12.19835332]
[1768900170007,4.01974524,128.79,128.76,4.43138243]
[1768900170199,106.11974524,128.81,128.77,4.43138243]
[1768900170399,109.82298517,128.81,128.77,4.37138249]
[1768900170622,7.78238511,128.8,128.75,11.47021082]
[1768900170806,4.07914518,128.79,128.75,11.47021082]
[1768900172317,109.88238511,128.81,128.76,4.43138243]
[1768900172627,102.1,128.81,128.77,4.43138243]
[1768900172819,102.1,128.81,128.78,4.43138243]
[1768900173130,4.10884517,128.81,128.78,4.40138244]
[1768900173424,4.10884517,128.81,128.76,3.70323993]
[1768900173425,3.70323993,128.81,128.75,11.47021082]
[1768900173614,3.70323993,128.8,128.75,11.47021082]
[1768900174017,7.8120851,128.8,128.75,11.47021082]
[1768900174522,4.10884517,128.8,128.75,11.47021082]
[1768900174921,4.10884517,128.8,128.76,4.43138243]
[1768900175826,7.81720789,128.81,128.77,4.43138243]
[1768900176034,121.50618148,128.83,128.79,4.43138243]
[1768900176035,106.20884517,128.83,128.79,4.43138243]
[1768900176218,109.91720789,128.83,128.79,4.40138245]
[1768900176609,4.13854515,128.82,128.79,4.40138245]
[1768900178622,4.13854515,128.82,128.78,4.43138243]
[1768900178819,11.90161351,128.82,128.75,27.18446601]
[1768900179030,4.13854515,128.8,128.76,4.43138243]
[1768900179543,4.13854515,128.78,128.74,12.1986485]
[1768900179726,4.13854515,128.78,128.75,4.43138243]
[1768900179917,4.13854515,128.79,128.75,4.43138243]
[1768900180234,4.13854515,128.79,128.76,4.43138243]
[1768900180440,4.13854515,128.79,128.67,61.7]
[1768900180441,16.98,128.8,128.77,3.70836272]
[1768900180615,4.18877266,128.82,128.78,3.70836272]
[1768900180816,4.18877266,128.82,128.72,3.70836272]
[1768900181014,4.18877266,128.82,128.77,3.70836272]
[1768900181341,106.28877266,128.83,128.79,3.70836272]
[1768900182647,117.75939407,128.83,128.79,4.43138243]
[1768900182860,4.18877266,128.82,128.78,4.06793336]
[1768900184127,16.98,128.81,128.77,3.70836272]
[1768900184438,21.41396755,128.81,128.77,3.70836272]
[1768900185336,21.41396755,128.81,128.78,3.70836272]
[1768900188151,21.41396755,128.81,128.77,4.06793336]
[1768900188358,21.41396755,128.81,128.78,3.70836272]
[1768900188843,21.41396755,128.81,128.77,7.77629608]
[1768900190554,21.41396755,128.81,128.77,3.70836272]
[1768900192571,21.41396755,128.81,128.78,3.70836272]
[1768900192819,21.41396755,128.81,128.77,4.96076493]
[1768900195284,4.31465951,128.8,128.75,1.25240221]
[1768900195495,4.31465951,128.8,128.76,3.70836272]
[1768900195805,4.31465951,128.8,128.76,4.96076493]
[1768900196572,4.31465951,128.8,128.76,1.25240221]
[1768900196773,4.31465951,128.8,128.76,4.96076493]
[1768900198095,4.31465951,128.79,128.74,9.01981526]
[1768900198277,4.31465951,128.77,128.74,3.70836272]
[1768900198584,4.31465951,128.77,128.73,4.96076493]
[1768900199395,4.31465951,128.77,128.74,3.70836272]
[1768900199585,16.98,128.78,128.74,4.96076493]
[1768900199586,21.29465951,128.78,128.74,4.96076493]
[1768900201486,4.31465951,128.76,128.71,1.25240221]
[1768900201678,16.98,128.75,128.72,4.96076493]
[1768900201871,16.92,128.75,128.72,1.25240221]
[1768900202490,21.23465951,128.75,128.72,1.25240221]
[1768900202793,16.92,128.75,128.72,1.25240221]
[1768900203105,5.34408856,128.79,128.72,1.25240221]
[1768900203106,3.70836272,128.8,128.75,1.25240221]
[1768900203396,21.29465951,128.79,128.75,4.96076493]
[1768900203590,21.29465951,128.79,128.75,1.25240221]
[1768900203802,21.29465951,128.79,128.75,4.96076493]
[1768900204403,4.31465951,128.78,128.75,1.25240221]
[1768900204914,21.29465951,128.79,128.75,1.25240221]
[1768900205212,21.29465951,128.79,128.75,4.96076493]
[1768900205619,4.31465951,128.79,128.75,4.96076493]
[1768900205819,16.98,128.78,128.75,4.96076493]
[1768900206324,4.31465951,128.79,128.75,4.96076493]
[1768900206524,16.98,128.78,128.75,4.96076493]
[1768900207613,106.41465951,128.81,128.77,4.96076493]
[1768900207818,22.38253262,128.8,128.77,4.96076493]
[1768900208023,16.98,128.8,128.78,3.70836272]
[1768900209225,3.70836272,128.84,128.79,3.70836272]
[1768900209226,4.31465951,128.84,128.79,3.70836272]
[1768900209416,22.38497101,128.83,128.8,3.70836272]
[1768900209738,5.40551299,128.82,128.8,3.70836272]
[1768900210034,21.29465951,128.83,128.8,3.70836272]
[1768900210205,5.32349255,128.82,128.8,3.70836272]
[1768900210410,21.29465951,128.83,128.8,3.70836272]
[1768900210623,5.32195958,128.82,128.8,3.70836272]
[1768900210821,16.98,128.83,128.8,3.70836272]
[1768900211427,16.98,128.83,128.81,3.70836272]
[1768900212819,21.29465951,128.83,128.8,3.70836272]
[1768900213022,21.29465951,128.83,128.79,11.47272833]
[1768900213527,21.29465951,128.83,128.8,3.70836272]
[1768900214933,4.31465951,128.82,128.75,27.18446601]
[1768900215126,4.31465951,128.82,128.78,3.70836272]
[1768900215624,4.31465951,128.82,128.75,27.18446601]
[1768900215823,4.31465951,128.82,128.78,3.70836272]
[1768900216626,4.31465951,128.82,128.75,27.18446601]
[1768900216832,4.31465951,128.82,128.78,3.70836272]
[1768900217208,4.31465951,128.82,128.78,11.47343481]
[1768900218709,106.41465951,128.84,128.8,3.70836272]
[1768900219042,16.98,128.83,128.81,3.70836272]
[1768900219551,102.1,128.84,128.82,3.70836272]
[1768900222051,16.98,128.86,128.83,3.70836272]
[1768900222052,4.31465951,128.86,128.83,3.70836272]
[1768900222338,4.31465951,128.88,128.85,3.70836272]
[1768900227042,4.31465951,128.88,128.84,3.70836272]
[1768900228451,4.31465951,128.88,128.82,19.40692439]
[1768900228452,4.31465951,128.88,128.86,3.70836272]
[1768900229237,4.31465951,128.88,128.84,3.70836272]
[1768900232441,4.31465951,128.88,128.81,7.7630477]
[1768900232442,4.10086673,128.87,128.81,7.7630477]
[1768900232616,4.10086673,128.87,128.82,3.70836272]
[1768900232819,4.10086673,128.87,128.82,11.4709771]
[1768900233439,4.10086673,128.87,128.83,11.47045829]
[1768900233627,4.10086673,128.87,128.84,3.70836272]
[1768900234429,4.10086673,128.87,128.83,7.76209557]
[1768900234646,4.10086673,128.87,128.84,3.70836272]
[1768900235142,4.10086673,128.87,128.84,3.70297023]
[1768900236826,4.10086673,128.87,128.83,7.76209557]